bitfinex/quotes_BTCUSD_20220731
["timestamp","ask_amount","ask_price","bid_price","bid_amount"]
[1659255166056,0.81172233,23687.0,23686.0,0.00014132]
[1659255166292,0.83938909,23687.0,23686.0,0.00014132]
[1659255166522,0.83938909,23687.0,23681.0,0.53397542]
[1659255166746,0.71122876,23686.0,23681.0,0.53397542]
[1659255166992,0.40725733,23686.0,23681.0,0.53397542]
[1659255167249,0.02766676,23687.0,23681.0,0.53397542]
[1659255167493,0.02766676,23687.0,23682.0,0.40725733]
[1659255167494,0.079,23686.0,23682.0,0.40725733]
[1659255167727,0.079,23686.0,23683.0,0.00764257]
[1659255168174,0.10666676,23686.0,23682.0,0.05]
[1659255168385,0.10666676,23686.0,23681.0,0.53397542]
[1659255168620,0.10666676,23686.0,23682.0,0.05]
[1659255168836,0.02766676,23686.0,23683.0,0.00764257]
[1659255169069,0.02766676,23686.0,23681.0,0.53397542]
[1659255169607,0.10366676,23686.0,23683.0,0.023]
[1659255170032,0.51092409,23686.0,23683.0,0.023]
[1659255170474,0.40725733,23685.0,23683.0,0.023]
[1659255170716,0.404495,23684.0,23683.0,0.023]
[1659255170925,0.404495,23684.0,23681.0,0.53397542]
[1659255170926,0.71175233,23684.0,23681.0,0.53397542]
[1659255171182,0.71175233,23683.0,23681.0,0.53397542]
[1659255171414,0.304495,23682.0,23681.0,0.53397542]
[1659255171633,0.05,23686.0,23681.0,0.53397542]
[1659255171634,0.71175233,23685.0,23681.0,0.53397542]
[1659255171892,0.05,23686.0,23681.0,0.53397542]
[1659255171893,0.71175233,23684.0,23681.0,0.53397542]
[1659255172119,0.304495,23683.0,23681.0,0.53397542]
[1659255172343,0.304495,23682.0,23681.0,0.54161799]
[1659255172550,0.62356,23688.0,23681.0,0.53397542]
[1659255172764,0.71175233,23687.0,23681.0,0.53397542]
[1659255173000,0.71175233,23686.0,23681.0,0.53397542]
[1659255173272,0.304495,23685.0,23681.0,0.53397542]
[1659255173485,0.40725733,23686.0,23682.0,0.3]
[1659255173697,0.304495,23685.0,23681.0,0.53397542]
[1659255173910,0.304495,23684.0,23681.0,0.58397542]
[1659255174126,0.05,23683.0,23681.0,0.53397542]
[1659255174355,0.079,23687.0,23682.0,0.3]
[1659255174582,0.304495,23686.0,23682.0,0.3]
[1659255174807,0.304495,23685.0,23682.0,0.3]
[1659255175043,0.304495,23684.0,23682.0,0.3]
[1659255175281,0.40725733,23687.0,23681.0,0.53397542]
[1659255175508,0.062,23685.0,23682.0,0.31664257]
[1659255175723,0.366495,23685.0,23682.0,0.31664257]
[1659255175930,0.304495,23684.0,23682.0,0.01190905]
[1659255176152,0.062,23685.0,23682.0,0.36190905]
[1659255176383,0.062,23685.0,23682.0,0.31190905]
[1659255176619,0.062,23685.0,23684.0,0.05]
[1659255176855,0.062,23685.0,23684.0,1.85725733]
[1659255177091,0.61431761,23694.0,23688.0,0.05]
[1659255177345,0.61431761,23694.0,23689.0,0.70725733]
[1659255177571,0.61431761,23694.0,23690.0,1.06175233]
[1659255177804,0.02766676,23693.0,23690.0,0.80725733]
[1659255178051,0.40725733,23693.0,23690.0,0.3]
[1659255178282,0.40725733,23693.0,23690.0,0.35]
[1659255178486,0.40725733,23693.0,23690.0,0.4]
[1659255178703,0.40725733,23693.0,23690.0,0.00764257]
[1659255178943,0.40725733,23693.0,23689.0,0.05]
[1659255178944,0.43492409,23693.0,23689.0,0.05]
[1659255179157,0.43492409,23693.0,23688.0,0.35]
[1659255179591,0.43492409,23693.0,23690.0,0.04]
[1659255179823,0.40725733,23693.0,23690.0,0.04]
[1659255180267,0.304495,23692.0,23690.0,0.04]
[1659255180483,0.40725733,23693.0,23690.0,0.04]
[1659255180700,0.1,23691.0,23690.0,0.04]
[1659255180956,0.81175233,23691.0,23690.0,0.04]
[1659255181420,1.25505233,23691.0,23684.0,0.00016291]
[1659255181634,0.5933,23691.0,23690.0,0.08]
[1659255181842,1.30505233,23691.0,23690.0,0.08]
[1659255182068,1.33671233,23691.0,23690.0,0.08]
[1659255182316,1.33734849,23691.0,23690.0,0.08]
[1659255182554,1.36437909,23691.0,23690.0,0.08]
[1659255182794,1.36437909,23691.0,23680.0,0.3]
[1659255183026,1.18671233,23690.0,23680.0,0.3]
[1659255183254,0.40725733,23689.0,23680.0,0.3]
[1659255183515,0.40725733,23689.0,23683.0,0.00016292]
[1659255183516,0.96765733,23689.0,23683.0,0.00016292]
[1659255183746,0.71175233,23688.0,23683.0,0.00016292]
[1659255183959,0.40725733,23687.0,23683.0,0.00016292]
[1659255184183,0.40725733,23687.0,23680.0,0.047]
[1659255184184,0.1,23684.0,23680.0,0.047]
[1659255184399,0.40725733,23684.0,23680.0,0.047]
[1659255184920,0.40725733,23684.0,23678.0,0.3]
[1659255184921,0.40725733,23684.0,23678.0,0.30014137]
[1659255185130,0.40725733,23684.0,23678.0,0.00014137]
[1659255185597,0.40725733,23684.0,23678.0,0.079]
[1659255186762,0.40725733,23684.0,23678.0,0.129]
[1659255186984,0.40725733,23684.0,23678.0,0.1]
[1659255187646,0.40725733,23684.0,23678.0,0.479]
[1659255188341,0.97505733,23685.0,23679.0,0.3]
[1659255188583,0.944583,23690.0,23679.0,1.05725733]
[1659255188584,0.2902,23690.0,23679.0,1.05725733]
[1659255188794,1.27585233,23689.0,23680.0,0.40725733]
[1659255189031,0.71175233,23688.0,23680.0,0.45725733]
[1659255189242,0.40725733,23688.0,23681.0,0.70725733]
[1659255189459,0.40725733,23688.0,23681.0,0.75725733]
[1659255189678,0.40725733,23688.0,23682.0,0.05]
[1659255189953,0.304495,23687.0,23681.0,0.35]
[1659255190167,0.40725733,23686.0,23681.0,0.35]
[1659255191549,0.40725733,23686.0,23681.0,0.429]
[1659255191975,0.40725733,23686.0,23682.0,0.05]
[1659255192184,0.02766676,23685.0,23682.0,0.05]
[1659255193046,0.02766676,23685.0,23681.0,0.35]
[1659255193496,0.02766676,23685.0,23682.0,0.08690809]
[1659255194138,0.02766676,23685.0,23682.0,0.129]
[1659255194579,0.02766676,23685.0,23682.0,0.13690809]
[1659255194796,0.43492409,23685.0,23681.0,0.05]
[1659255195010,0.43492409,23685.0,23681.0,0.3]
[1659255195217,0.05,23684.0,23681.0,0.35]
[1659255195434,0.43492409,23685.0,23681.0,0.3]
[1659255195639,0.43492409,23685.0,23680.0,0.35]
[1659255196088,0.43492409,23685.0,23680.0,0.4]
[1659255196354,0.25514989,23687.0,23681.0,0.381]
[1659255196587,0.40725733,23686.0,23681.0,0.381]
[1659255196793,0.40725733,23686.0,23681.0,0.331]
[1659255197233,0.40725733,23686.0,23681.0,0.031]
[1659255197478,0.304495,23685.0,23681.0,0.031]
[1659255197705,0.40725733,23685.0,23679.0,0.35]
[1659255197930,0.40725733,23685.0,23681.0,0.022]
[1659255198629,0.48425733,23686.0,23682.0,0.01016718]
[1659255199068,0.05,23685.0,23682.0,0.01016718]
[1659255199275,0.40725733,23686.0,23682.0,0.01016718]
[1659255199486,0.40725733,23686.0,23682.0,0.04416718]
[1659255199689,0.02766676,23685.0,23682.0,0.04416718]
[1659255199925,0.40725733,23686.0,23682.0,0.04416718]
[1659255200210,0.40715342,23686.0,23682.0,0.04416718]
[1659255200681,0.40706343,23686.0,23682.0,0.034]
[1659255200900,0.40706343,23686.0,23680.0,0.3]
[1659255201130,0.40706343,23686.0,23680.0,0.65]
[1659255201360,0.41306343,23686.0,23680.0,0.65]
[1659255201588,0.41306343,23686.0,23680.0,0.738]
[1659255202060,0.41306343,23686.0,23680.0,0.638]
[1659255202291,0.41306343,23686.0,23680.0,0.338]
[1659255202525,0.41306343,23686.0,23680.0,0.388]
[1659255202807,0.41306343,23686.0,23680.0,0.038]
[1659255203020,0.41306343,23686.0,23679.0,0.35]
[1659255203245,0.41306343,23686.0,23679.0,0.75725733]
[1659255203467,0.41306343,23686.0,23680.0,0.035]
[1659255203707,0.41306343,23686.0,23680.0,0.085]
[1659255204182,0.41306343,23686.0,23680.0,0.035]
[1659255204615,0.41306343,23686.0,23680.0,0.085]
[1659255204843,0.41306343,23686.0,23680.0,0.05]
[1659255205530,0.41306343,23686.0,23680.0,0.385]
[1659255206011,0.41306343,23686.0,23681.0,0.3]
[1659255206244,0.006,23686.0,23681.0,0.75725733]
[1659255206458,0.006,23686.0,23682.0,0.40725733]
[1659255206694,0.006,23686.0,23683.0,0.01005976]
[1659255207375,0.05,23685.0,23681.0,0.1292]
[1659255207596,0.66841153,23686.0,23683.0,0.043]
[1659255207903,0.33216176,23685.0,23683.0,0.043]
[1659255208129,0.02766676,23685.0,23683.0,0.043]
[1659255208346,0.05,23684.0,23683.0,0.043]
[1659255208559,0.02766676,23685.0,23683.0,0.043]
[1659255208782,0.02766676,23685.0,23679.0,0.3]
[1659255209032,0.02766676,23685.0,23679.0,0.40725733]
[1659255209480,0.02766676,23685.0,23679.0,0.45425733]
[1659255209770,0.76175233,23684.0,23679.0,0.047]
[1659255210000,0.1,23680.0,23679.0,0.047]
[1659255210239,0.84342233,23680.0,23679.0,0.047]
[1659255210487,1.14342233,23680.0,23679.0,0.047]
[1659255210717,2.74827068,23680.0,23679.0,0.047]
[1659255210959,2.79827068,23680.0,23676.0,0.002]
[1659255211194,0.1,23677.0,23676.0,0.002]
[1659255211442,0.84343233,23677.0,23676.0,0.002]
[1659255211666,0.81175233,23677.0,23676.0,0.002]
[1659255212334,0.84343233,23677.0,23676.0,0.002]
[1659255212572,1.14343233,23677.0,23676.0,0.002]
[1659255213267,0.84343233,23677.0,23676.0,0.002]
[1659255213536,2.21453233,23677.0,23676.0,0.002]
[1659255213761,2.34219909,23677.0,23676.0,0.002]
[1659255214476,1.94219909,23677.0,23676.0,0.002]
[1659255214706,2.34219909,23677.0,23676.0,0.0001]
[1659255214951,2.34219909,23677.0,23674.0,0.0011]
[1659255214952,0.5433,23675.0,23674.0,0.0011]
[1659255215176,1.28673233,23675.0,23674.0,0.0011]
[1659255215514,1.25505233,23675.0,23674.0,0.0011]
[1659255215732,1.33673233,23675.0,23674.0,0.0011]
[1659255215969,0.1,23671.0,23667.0,0.0012]
[1659255216206,0.1,23668.0,23667.0,0.0012]
[1659255216659,0.404495,23668.0,23667.0,0.00141185]
[1659255216900,1.25505233,23668.0,23667.0,0.00141185]
[1659255217134,1.65505233,23668.0,23667.0,0.00141185]
[1659255217395,1.65505233,23668.0,23662.0,0.0031]
[1659255217396,1.5944,23665.0,23662.0,0.0031]
[1659255217642,0.1,23659.0,23658.0,0.002]
[1659255217916,0.39879503,23659.0,23658.0,0.002]
[1659255218151,0.754495,23659.0,23658.0,0.002]
[1659255218616,0.09430003,23658.0,23657.0,0.0001]
[1659255218840,0.80605236,23658.0,23657.0,0.0001]
[1659255219314,0.83371912,23658.0,23657.0,0.0001]
[1659255219545,1.18941909,23658.0,23657.0,0.0281]
[1659255219778,0.78941909,23658.0,23657.0,0.0281]
[1659255220010,1.23271909,23658.0,23657.0,0.0281]
[1659255220241,1.18271909,23658.0,23657.0,0.0281]
[1659255220468,0.71175233,23658.0,23657.0,0.0281]
[1659255220710,0.71175233,23658.0,23657.0,0.0081]
[1659255220711,0.304495,23658.0,23657.0,0.0081]
[1659255220934,0.71175233,23658.0,23654.0,0.002]
[1659255221191,0.39879503,23657.0,23654.0,0.002]
[1659255221394,0.42582563,23657.0,23654.0,0.002]
[1659255221625,0.304495,23657.0,23654.0,0.002]
[1659255221852,0.71175233,23657.0,23654.0,0.002]
[1659255222078,0.09430003,23654.0,23649.0,0.6292]
[1659255222319,0.09430003,23654.0,23650.0,0.304495]
[1659255222546,0.40725733,23657.0,23652.0,0.5]
[1659255222787,0.40725733,23657.0,23651.0,0.50764257]
[1659255223200,0.40725733,23657.0,23650.0,0.03171]
[1659255223202,0.40725733,23657.0,23649.0,0.40396733]
[1659255223424,0.40725733,23657.0,23650.0,0.85]
[1659255223659,0.43825733,23657.0,23651.0,0.126]
[1659255223873,0.40725733,23656.0,23651.0,0.126]
[1659255224804,0.40725733,23656.0,23650.0,0.35]
[1659255225281,0.40725733,23656.0,23650.0,0.4]
[1659255225507,0.42925733,23656.0,23650.0,0.473]
[1659255225742,0.42925733,23656.0,23650.0,0.373]
[1659255225976,0.42925733,23656.0,23650.0,0.073]
[1659255225977,0.05,23653.0,23650.0,0.073]
[1659255226212,0.022,23656.0,23650.0,0.073]
[1659255226213,0.73941909,23652.0,23650.0,0.073]
[1659255226452,0.80605236,23651.0,23650.0,0.068]
[1659255226940,0.50155736,23651.0,23646.0,0.00020161]
[1659255227164,0.40725733,23650.0,23646.0,0.00020161]
[1659255227390,0.02766676,23649.0,23644.0,0.1]
[1659255227619,0.25557286,23650.0,23644.0,0.2]
[1659255227852,0.50155736,23651.0,23644.0,1.03645733]
[1659255228073,0.50155736,23651.0,23645.0,0.304495]
[1659255228332,0.40725733,23650.0,23646.0,0.35]
[1659255228571,0.09430003,23651.0,23642.0,0.02777636]
[1659255228572,0.85055733,23648.0,23642.0,0.02777636]
[1659255228798,0.05,23645.0,23642.0,0.02777636]
[1659255229032,0.71175233,23644.0,23642.0,0.02777636]
[1659255229284,0.04779856,23645.0,23642.0,0.01777636]
[1659255229285,0.80605236,23643.0,23642.0,0.01777636]
[1659255229536,0.83308296,23643.0,23642.0,0.01777636]
[1659255229769,0.80668852,23643.0,23642.0,0.01757472]
[1659255230003,0.041,23645.0,23642.0,0.01257472]
[1659255230237,0.40725733,23643.0,23642.0,0.01257472]
[1659255230491,0.43428793,23643.0,23642.0,0.01257472]
[1659255230988,0.36135548,23648.0,23642.0,0.01257472]
[1659255230989,1.01558824,23651.0,23642.0,0.12300873]
[1659255231218,0.71175233,23648.0,23642.0,0.01477616]
[1659255231451,0.75955089,23647.0,23642.0,0.01257472]
[1659255231679,0.043,23643.0,23642.0,0.01257472]
[1659255231906,0.47728793,23643.0,23642.0,0.01257472]
[1659255232141,0.45025733,23643.0,23642.0,0.01257472]
[1659255232594,0.75475233,23643.0,23642.0,0.01257472]
[1659255232874,0.71175233,23643.0,23642.0,0.01257472]
[1659255233333,0.71238849,23643.0,23642.0,0.01257472]
[1659255233572,0.76638849,23643.0,23642.0,0.01257472]
[1659255233787,1.20968849,23643.0,23642.0,0.01257472]
[1659255234033,1.23671909,23643.0,23642.0,0.01257472]
[1659255234262,0.79341909,23643.0,23642.0,0.01257472]
[1659255234999,0.73941909,23643.0,23642.0,0.01257472]
[1659255235224,0.71238849,23643.0,23642.0,0.01257472]
[1659255235453,0.76938849,23643.0,23642.0,0.01257472]
[1659255235924,1.21268849,23643.0,23642.0,0.01257472]
[1659255236153,1.29220705,23643.0,23642.0,0.01257472]
[1659255236647,1.34220705,23643.0,23642.0,4.72e-06]
[1659255236854,0.58539859,23641.0,23640.0,9e-06]
[1659255237064,1.32887092,23641.0,23640.0,9e-06]
[1659255237527,1.32887092,23641.0,23628.0,0.0011]
[1659255237528,0.04779856,23633.0,23628.0,0.0011]
[1659255237760,0.50155736,23633.0,23628.0,0.0011]
[1659255237971,0.50155736,23633.0,23632.0,0.005]
[1659255237972,0.80105236,23633.0,23632.0,0.005]
[1659255238443,1.24435236,23633.0,23632.0,0.005]
[1659255238782,1.31918152,23633.0,23632.0,0.0001]
[1659255239017,0.73878293,23633.0,23632.0,0.10069]
[1659255239265,0.73878293,23633.0,23632.0,0.0001]
[1659255239490,0.73941909,23633.0,23632.0,0.0001]
[1659255239727,0.78341909,23633.0,23632.0,0.0001]
[1659255240701,0.78341909,23633.0,23632.0,0.10069]
[1659255240702,0.348495,23633.0,23632.0,0.10069]
[1659255240933,0.6454,23640.0,23633.0,0.00220144]
[1659255240934,0.0927,23640.0,23633.0,0.00220144]
[1659255241202,0.40725733,23639.0,23634.0,0.1279]
[1659255241423,0.40725733,23642.0,23634.0,0.14054348]
[1659255241666,0.038,23640.0,23633.0,0.00220144]
[1659255241886,0.038,23640.0,23632.0,0.211525]
[1659255241887,0.40725733,23639.0,23632.0,0.211525]
[1659255242352,0.40725733,23639.0,23632.0,0.0001]
[1659255242595,0.40725733,23638.0,23632.0,0.0001]
[1659255243072,0.40725733,23637.0,23632.0,0.1001]
[1659255243313,0.53635733,23639.0,23632.0,0.40735733]
[1659255243554,0.041,23638.0,23632.0,0.40735733]
[1659255244033,0.40725733,23637.0,23632.0,0.0001]
[1659255244975,0.00011941,23632.0,23629.0,0.3]
[1659255245206,0.00011941,23632.0,23631.0,0.05]
[1659255245467,0.00011941,23632.0,23631.0,0.75945877]
[1659255245684,0.00011941,23632.0,23631.0,1.16395377]
[1659255245914,0.00011941,23632.0,23631.0,1.17659725]
[1659255246161,0.042,23637.0,23636.0,0.19724144]
[1659255246371,0.042,23637.0,23636.0,0.3624089]
[1659255246641,0.042,23637.0,23636.0,0.66910534]
[1659255246868,0.58953938,23643.0,23636.0,0.66910534]
[1659255247100,0.58953938,23643.0,23642.0,0.10279144]
[1659255247347,0.58854546,23643.0,23642.0,0.15219336]
[1659255247593,0.58854546,23643.0,23642.0,0.50711315]
[1659255247594,0.60754546,23643.0,23642.0,0.50711315]
[1659255247842,0.60754546,23643.0,23642.0,0.90711315]
[1659255248333,0.60754546,23643.0,23642.0,1.26437048]
[1659255248805,0.60754546,23643.0,23642.0,0.91201305]
[1659255249035,0.58354546,23643.0,23642.0,0.90394569]
[1659255249281,0.58354546,23643.0,23642.0,1.20394569]
[1659255249520,0.58354546,23643.0,23642.0,0.94294569]
[1659255249745,0.58354546,23643.0,23642.0,0.84999826]
[1659255249979,0.61121222,23643.0,23642.0,0.079]
[1659255250708,0.58354546,23643.0,23642.0,0.079]
[1659255250945,0.58354546,23643.0,23642.0,0.00160336]
[1659255251190,0.58354546,23643.0,23642.0,0.15219336]
[1659255251420,0.58354546,23643.0,23642.0,0.91394569]
[1659255251639,0.58354546,23643.0,23642.0,1.29294569]
[1659255251874,0.58354546,23643.0,23642.0,1.30058826]
[1659255252368,0.58354546,23643.0,23642.0,1.35101305]
[1659255252810,0.25962546,23643.0,23642.0,1.35101305]
[1659255253063,0.3,23653.0,23642.0,1.28465653]
[1659255253286,6.159e-05,23655.0,23654.0,0.00160336]
[1659255253516,0.5932,23659.0,23654.0,0.0096705]
[1659255253749,0.304495,23658.0,23654.0,0.00160336]
[1659255254183,0.6437,23662.0,23654.0,0.00160336]
[1659255254184,0.304495,23657.0,23654.0,0.00160336]
[1659255254185,0.33216176,23657.0,23654.0,0.00160336]
[1659255254420,0.6754,23662.0,23651.0,0.00160336]
[1659255254421,0.40725733,23658.0,23651.0,0.00160336]
[1659255254651,0.40725733,23656.0,23650.0,0.00160336]
[1659255254919,0.40725733,23657.0,23653.0,0.00160336]
[1659255255137,0.40725733,23657.0,23654.0,0.00764257]
[1659255255365,0.40725733,23659.0,23654.0,0.00764257]
[1659255255606,0.40725733,23659.0,23655.0,0.00160336]
[1659255255822,0.9754,23662.0,23654.0,0.00764257]
[1659255255823,0.40725733,23661.0,23658.0,0.00160336]
[1659255256071,0.08930003,23659.0,23658.0,0.00104965]
[1659255256287,0.39379503,23659.0,23658.0,0.00104965]
[1659255256735,0.304495,23659.0,23658.0,0.00104965]
[1659255256957,0.02766676,23660.0,23658.0,0.00104965]
[1659255257185,0.304495,23659.0,23658.0,0.00104965]
[1659255257411,0.02766676,23660.0,23658.0,0.00104965]
[1659255257642,0.304495,23659.0,23658.0,0.00104965]
[1659255258371,0.299495,23659.0,23658.0,0.00104965]
[1659255258843,0.299495,23659.0,23651.0,0.4]
[1659255258844,0.70675233,23659.0,23653.0,0.00104965]
[1659255259094,0.71175233,23658.0,23651.0,0.00104965]
[1659255259328,0.40725733,23658.0,23651.0,0.00104965]
[1659255260540,0.40725733,23658.0,23645.0,1.0294]
[1659255260541,0.40725733,23656.0,23646.0,0.00104965]
[1659255260791,0.08930003,23652.0,23643.0,0.0236]
[1659255261026,0.74354333,23651.0,23641.0,0.58324965]
[1659255261263,0.40725733,23650.0,23642.0,0.40725733]
[1659255261822,0.95220003,23652.0,23646.0,0.00104965]
[1659255261823,0.65820003,23652.0,23646.0,0.00104965]
[1659255262050,0.304576,23651.0,23646.0,0.40830698]
[1659255262268,0.304576,23651.0,23643.0,0.063]
[1659255262269,0.40725733,23651.0,23643.0,0.063]
[1659255262505,0.03171,23650.0,23643.0,0.063]
[1659255262729,0.40725733,23651.0,23644.0,0.40725733]
[1659255262956,0.65220003,23652.0,23646.0,0.00104965]
[1659255263182,0.304576,23651.0,23646.0,0.00104965]
[1659255263410,0.304576,23650.0,23646.0,0.00104965]
[1659255263674,0.33224276,23649.0,23646.0,0.00104965]
[1659255263905,0.02766676,23649.0,23646.0,0.00104965]
[1659255264588,0.304576,23648.0,23646.0,0.00104965]
[1659255264829,0.304576,23648.0,23642.0,0.30104965]
[1659255265067,0.40725733,23651.0,23646.0,0.00104965]
[1659255265293,0.304576,23650.0,23646.0,0.00104965]
[1659255265555,0.079,23648.0,23643.0,0.00019877]
[1659255265795,0.304576,23647.0,23643.0,0.00019877]
[1659255266244,0.304576,23647.0,23642.0,0.40830698]
[1659255266467,0.079,23648.0,23642.0,0.40830698]
[1659255266919,0.40725733,23649.0,23642.0,0.40830698]
[1659255267381,0.40725733,23649.0,23646.0,0.005]
[1659255267628,0.33224276,23648.0,23646.0,0.005]
[1659255267862,0.304576,23647.0,23646.0,0.005]
[1659255268307,0.304576,23648.0,23646.0,0.005]
[1659255268534,0.304576,23647.0,23646.0,0.005]
[1659255268765,0.02766676,23648.0,23646.0,0.005]
[1659255269687,0.079,23648.0,23646.0,0.01264257]
[1659255269911,0.33224276,23647.0,23646.0,0.005]
[1659255270358,0.304576,23647.0,23646.0,0.005]
[1659255270809,0.65220003,23652.0,23646.0,0.01264257]
[1659255270810,0.304576,23650.0,23646.0,0.01264257]
[1659255271030,0.304576,23650.0,23646.0,0.005]
[1659255271031,0.33224276,23649.0,23646.0,0.005]
[1659255271270,0.304576,23648.0,23646.0,0.005]
[1659255271771,0.08930003,23647.0,23646.0,0.005]
[1659255271992,0.39387603,23647.0,23646.0,0.005]
[1659255272222,0.08930003,23647.0,23646.0,0.005]
[1659255272672,0.304576,23647.0,23646.0,0.005]
[1659255272895,0.43492409,23649.0,23646.0,0.005]
[1659255273119,0.304576,23648.0,23646.0,0.005]
[1659255273418,0.08930003,23647.0,23646.0,0.005]
[1659255273872,0.079,23649.0,23646.0,0.10559]
[1659255274767,0.079,23649.0,23647.0,0.00764257]
[1659255274989,0.304576,23651.0,23646.0,0.005]
[1659255275203,0.71183333,23650.0,23646.0,0.005]
[1659255275471,0.304576,23649.0,23646.0,0.005]
[1659255275697,0.079,23649.0,23646.0,0.01264257]
[1659255276136,0.079,23649.0,23646.0,0.005]
[1659255276824,0.079,23649.0,23646.0,0.01264257]
[1659255277048,0.5629,23652.0,23646.0,0.01264257]
[1659255277346,0.40725733,23651.0,23647.0,0.00104965]
[1659255277575,0.079,23649.0,23647.0,0.00104965]
[1659255277788,0.079,23649.0,23648.0,0.00104965]
[1659255278484,0.1060306,23649.0,23648.0,0.00104965]
[1659255278713,0.079,23649.0,23648.0,0.00104965]
[1659255278944,0.40725733,23651.0,23646.0,0.01049222]
[1659255279445,0.40725733,23653.0,23646.0,0.01049222]
[1659255279673,0.079,23651.0,23646.0,0.01049222]
[1659255280438,0.079,23651.0,23647.0,0.40725733]
[1659255280677,0.079,23651.0,23646.0,0.76774955]
[1659255281157,0.8623,23654.0,23647.0,0.05]
[1659255281389,0.40725733,23653.0,23646.0,0.76774955]
[1659255281614,0.079,23651.0,23647.0,0.05]
[1659255282301,0.079,23651.0,23647.0,0.1]
[1659255282544,0.079,23651.0,23648.0,0.45725733]
[1659255282777,0.079,23651.0,23650.0,0.05]
[1659255283471,0.079,23651.0,23650.0,0.1]
[1659255283700,0.079,23651.0,23650.0,0.404576]
[1659255283934,0.079,23651.0,23650.0,0.354576]
[1659255284188,0.079,23651.0,23649.0,0.211281]
[1659255284423,0.079,23651.0,23650.0,0.36221857]
[1659255284662,0.079,23651.0,23649.0,0.40725733]
[1659255284899,0.079,23651.0,23647.0,0.05]
[1659255284900,0.48625733,23651.0,23646.0,0.0030484]
[1659255285177,0.33171,23654.0,23646.0,0.41030573]
[1659255285409,0.40725733,23654.0,23646.0,0.41010698]
[1659255285653,0.079,23651.0,23646.0,0.41010698]
[1659255286110,0.079,23651.0,23647.0,0.304576]
[1659255286376,0.00063616,23650.0,23646.0,0.41010698]
[1659255286614,0.079,23651.0,23647.0,0.304576]
[1659255286840,0.40725733,23654.0,23646.0,0.46010698]
[1659255287313,0.40725733,23654.0,23647.0,0.9663757]
[1659255287539,0.48625733,23654.0,23647.0,0.9663757]
[1659255287776,0.40725733,23653.0,23647.0,0.9663757]
[1659255288227,0.079,23654.0,23648.0,0.40725733]
[1659255288693,0.079,23654.0,23648.0,0.45725733]
[1659255288973,0.3,23657.0,23648.0,0.45455733]
[1659255289211,0.40725733,23656.0,23648.0,0.45455733]
[1659255289452,0.40725733,23656.0,23648.0,0.50455733]
[1659255289659,0.079,23654.0,23649.0,0.9662762]
[1659255289884,0.079,23654.0,23650.0,0.05]
[1659255290146,0.00063616,23653.0,23651.0,0.00764257]
[1659255290361,0.079,23654.0,23651.0,0.00764257]
[1659255290854,0.40725733,23656.0,23651.0,0.00764257]
[1659255291100,0.304576,23655.0,23650.0,0.05]
[1659255291315,0.40725733,23655.0,23650.0,0.05]
[1659255292015,0.304576,23654.0,23650.0,0.05]
[1659255292241,0.73950009,23653.0,23649.0,0.9662762]
[1659255292477,0.43492409,23653.0,23649.0,0.9662762]
[1659255292922,0.43492409,23653.0,23650.0,0.00245373]
[1659255293144,0.43492409,23653.0,23650.0,0.0100963]
[1659255293373,0.43492409,23653.0,23650.0,0.00245373]
[1659255293374,0.304576,23652.0,23650.0,0.00245373]
[1659255293601,0.51392409,23653.0,23650.0,0.00245373]
[1659255293852,0.304576,23652.0,23650.0,0.00245373]
[1659255294072,0.51392409,23653.0,23650.0,0.00245373]
[1659255294301,0.304576,23652.0,23650.0,0.0100963]
[1659255294534,0.51392409,23653.0,23650.0,0.00245373]
[1659255294782,0.304576,23652.0,23650.0,0.00245373]
[1659255295016,0.304576,23651.0,23650.0,0.10304373]
[1659255295255,0.40725733,23653.0,23650.0,0.10304373]
[1659255295477,0.079,23652.0,23650.0,0.00245373]
[1659255295705,0.48625733,23652.0,23650.0,0.00245373]
[1659255295959,0.304576,23651.0,23650.0,0.00245373]
[1659255296170,0.48625733,23652.0,23650.0,0.00245373]
[1659255296690,0.304576,23651.0,23650.0,0.00245373]
[1659255296920,0.40725733,23652.0,23650.0,0.00245373]
[1659255297372,0.40725733,23652.0,23650.0,0.0100963]
[1659255297603,0.48625733,23652.0,23650.0,0.0100963]
[1659255297836,0.48625733,23652.0,23650.0,0.00245373]
[1659255298082,0.48625733,23652.0,23650.0,0.00316638]
[1659255298325,0.304576,23651.0,23650.0,0.00245373]
[1659255298581,0.33224276,23651.0,23650.0,0.00245373]
[1659255298818,0.40725733,23652.0,23650.0,0.00245373]
[1659255299270,0.304576,23651.0,23650.0,0.00245373]
[1659255299728,0.079,23652.0,23650.0,0.0100963]
[1659255299953,0.304576,23651.0,23650.0,0.1106863]
[1659255300176,0.10666676,23652.0,23650.0,0.00245373]
[1659255300490,0.304576,23651.0,23650.0,0.00245373]
[1659255300717,0.48625733,23652.0,23651.0,0.1528814]
[1659255300948,0.304593,23652.0,23651.0,0.38479233]
[1659255301173,0.304593,23656.0,23651.0,0.38479233]
[1659255301418,0.40725733,23655.0,23651.0,0.38479233]
[1659255301651,0.079,23652.0,23651.0,0.38479233]
[1659255302785,0.40725733,23655.0,23651.0,0.3924349]
[1659255303006,0.33225976,23654.0,23651.0,0.3924349]
[1659255303223,0.02766676,23654.0,23651.0,0.38479233]
[1659255303467,0.40725733,23655.0,23651.0,0.38479233]
[1659255303709,0.079,23655.0,23651.0,0.38479233]
[1659255303938,0.079,23655.0,23652.0,0.00764257]
[1659255304178,0.079,23655.0,23651.0,0.48479233]
[1659255304410,0.079,23655.0,23652.0,0.05]
[1659255304871,0.079,23655.0,23653.0,0.30458]
[1659255305098,0.079,23655.0,23654.0,0.05]
[1659255305328,0.10666676,23655.0,23651.0,0.43479233]
[1659255305604,0.079,23655.0,23654.0,0.05]
[1659255305837,0.079,23655.0,23654.0,0.1]
[1659255306076,0.079,23655.0,23654.0,0.76222257]
[1659255306601,0.079,23655.0,23654.0,0.30458]
[1659255306831,0.02766676,23656.0,23651.0,0.59604933]
[1659255307062,0.02766676,23656.0,23651.0,0.38479233]
[1659255307281,0.30458,23655.0,23651.0,0.38479233]